Cogmind - Beta 13 @@@ ROGUE MODE // 2024.05.29 @ 02:24:19 Player: CanadianCogs Result: Destroyed by as-48622 with Assembled Rifle Performance ------------- Evolutions (1) 500 Regions Visited (4) 800 Robots Destroyed (28) 140 Value Destroyed (698) 698 Prototype IDs (0) 0 Alien Tech Used (0) 0 Bonus (159) 159 TOTAL SCORE: 2297 Bonus ------- Follower Combat Kills 159 Cogmind --------- Core Integrity 0/400 Matter 300/300 Energy 259/265 System Corruption 0% Temperature Cool (0) Movement Walking (260) Ox2 Location -9/Mines Parts ------- > --- POWER (1) -------- Improved Ion Engine > --- PROPULSION (2) --- Carbon-fiber Leg Carbon-fiber Leg > --- UTILITY (4) ------ High-capacity Storage Unit Structural Scanner Actuator Array Actuator Array > --- WEAPON (2) ------- Mining Claw Makeshift Sword > --- INVENTORY (20) --- Heat Sink Cargo Storage Unit Sensor Array Signal Interpreter Actuator Array Actuator Array Propulsion Shielding Light Armor Plating EM Pulse Cannon EM Pulse Cannon EM Pulse Cannon EM Pulse Cannon Beam Cannon Beam Cannon Grenade Launcher Rocket Launcher Flail Maul Mining Claw Peak State ------------ > --- POWER ------------ Improved Ion Engine > --- PROPULSION ------- Carbon-fiber Leg Carbon-fiber Leg > --- UTILITY ---------- High-capacity Storage Unit Structural Scanner Actuator Array Actuator Array > --- WEAPON ----------- Mining Claw Makeshift Sword > --- INVENTORY -------- Armored Wheel Heat Sink Cargo Storage Unit Sensor Array Signal Interpreter Actuator Array Actuator Array Light Armor Plating EM Pulse Cannon EM Pulse Cannon EM Pulse Cannon EM Pulse Cannon Beam Cannon Beam Cannon Grenade Launcher Mining Claw [Rating: 24] Favorites ----------- Power Ion Engine Engine Ion Engine Propulsion Carbon-fiber Leg Treads Light Treads Leg Carbon-fiber Leg Wheel Compact Wheel Utility High-capacity Storage Unit Device Structural Scanner Storage High-capacity Storage Unit Protection Utility Shielding Weapon Medium Laser Energy Gun Medium Laser Launcher Grenade Launcher Slashing Weapon Mining Claw Build | -11 -10 -10 -9 -9 ------- Run | Yrd Mat Min Mat Min Slots Evolved 2 | . . . 2 . Power . | . . . . . Propulsion . | . . . . . Utility 2 | . . . 2 . Weapon . | . . . . . Parts Attached 34 | 7 3 . 16 8 Power 5 | 1 . . 2 2 Engine 5 | 1 . . 2 2 Core . | . . . . . Reactor . | . . . . . Propulsion 9 | 2 . . 5 2 Treads 3 | . . . 3 . Leg 4 | . . . 2 2 Wheel 2 | 2 . . . . Hover . | . . . . . Flight . | . . . . . Utility 11 | 2 3 . 6 . Device 6 | 1 . . 5 . Storage 3 | 1 2 . . . Processor . | . . . . . Hackware . | . . . . . Protection 2 | . 1 . 1 . Artifact . | . . . . . Weapon 9 | 2 . . 3 4 Energy Gun 3 | 2 . . 1 . Energy Cannon . | . . . . . Ballistic Gun . | . . . . . Ballistic Cannon . | . . . . . Launcher 1 | . . . . 1 Special Weapon . | . . . . . Impact Weapon . | . . . . . Slashing Weapon 5 | . . . 2 3 Piercing Weapon . | . . . . . Special Melee Weapon . | . . . . . Unidentified Prototypes . | . . . . . Parts Lost 11 | . 1 . 7 3 Power 3 | . . . 2 1 Propulsion 4 | . . . 3 1 Utility 2 | . 1 . 1 . Weapon 2 | . . . 1 1 Highest Loss Streak 3 | . 1 . 3 3 To Critical Strikes . | . . . . . Average Slot Usage (%) 91 | . 100 100 80 98 Engine 8 | . 14 14 4 10 Treads 4 | . . . 11 . Leg 7 | . . . 1 21 Wheel 7 | . 28 28 2 . Device 19 | . 8 . 16 33 Storage 11 | . 14 14 11 11 Protection 8 | . 5 14 15 . Energy Gun 13 | . 28 28 15 . Slashing Weapon 7 | . . . 1 21 Naked Turns . | . . . . . Heaviest Build 90 | 15 90 50 62 62 Greatest Support 40 | 32 32 32 40 30 Greatest Overweight (x) 14 | . 2 1 14 3 Average Overweight (x) 1 | . 1 1 1 2 Largest Inventory Capacity 25 | 8 25 20 20 20 Average Capacity 20 | 7 22 20 20 20 Most Carried 20 | 5 12 13 20 20 Average Carried 15 | . 5 12 18 17 Final Capacity 20 | 8 20 20 20 20 Final Carried 20 | . 12 13 20 20 Class Distribution -------------------- 63% | Mutant 34% | Gladiator Dominant Class ---------------- Mutant | -10/Materials Mutant | -10/Mines Mutant | -9/Materials Gladiator | -9/Mines Resources | -11 -10 -10 -9 -9 ----------- Run | Yrd Mat Min Mat Min Matter Collected 505 | 151 144 . 65 145 Remotely . | . . . . . Salvage Created 1123 | 142 231 . 618 132 Parts 50 | 6 11 . 29 4 Haulers Intercepted 1 | . 1 . . . Recyclers Shooed 2 | 1 . . 1 . Parts Field Recycled . | . . . . . Retrieved Matter . | . . . . . Parts Self-Destructed . | . . . . . Prevented . | . . . . . Kills | -11 -10 -10 -9 -9 ------- Run | Yrd Mat Min Mat Min Combat Hostiles Destroyed 25 | . 8 . 12 5 Melee 5 | . . . . 5 Guns 20 | . 8 . 12 . Classes Destroyed 9 | 2 3 . 3 1 Tunneler 2 | 2 . . . . Hauler 1 | . 1 . . . Recycler 2 | 1 . . 1 . Watcher 1 | . . . 1 . Swarmer 6 | . 6 . . . Grunt 14 | . 2 . 10 2 Duelist 1 | . . . 1 . Sentry 1 | . . . 1 . Assembled 3 | . . . . 3 Best Kill Streak 4 | 2 4 . 3 3 Combat Bots Only 4 | . 4 . 3 3 Max Kills in Single Turn 1 | 1 1 . 1 1 Gunslinging . | . . . . . Exploded . | . . . . . Melee 1 | . . . . 1 Uniques/NPCs Destroyed . | . . . . . Combat | -11 -10 -10 -9 -9 -------- Run | Yrd Mat Min Mat Min Hostile Shots Fired 220 | . 45 . 95 80 Missed 54 | . 12 . 26 16 Damage Taken 2065 | . 314 . 890 861 Core 500 | . 94 . 134 272 Absorbed by Shields . | . . . . . Redirected to Shielding 97 | . 6 . 91 . Regen/Repaired (Parts) 45 | . . . 45 . Core Remaining (%) 81 | 100 . 62 . . Volleys Fired 110 | 8 29 . 73 . Largest 2 | 2 2 . 2 . Hottest 100 | 100 100 . 100 . Shots Fired 180 | 16 58 . 106 . Gun 180 | 16 58 . 106 . Cannon . | . . . . . Launcher . | . . . . . Special . | . . . . . Kinetic . | . . . . . Thermal 180 | 16 58 . 106 . Explosive . | . . . . . Electromagnetic . | . . . . . Robot Hit Streak 14 | 8 7 . 14 . Robot Miss Streak 3 | 1 2 . 3 . Penetration Max . | . . . . . Secondary Targets 3 | . 2 . 1 . Max Gunslinging Chain 1 | . 1 . 1 . Shots Hit Robots 146 | 12 39 . 79 16 Core Hits 52 | 4 13 . 31 4 Critical Kills . | . . . . . Critical Parts Destroyed . | . . . . . Critical Strikes 16 | 2 3 . 11 . Burn 16 | 2 3 . 11 . Melee Attacks 29 | . . . . 29 Impact . | . . . . . Slashing 29 | . . . . 29 Piercing . | . . . . . Sneak Attacks . | . . . . . Combat Hostiles . | . . . . . Follow-up Attacks 6 | . . . . 6 Damage Inflicted 2092 | 151 498 . 980 463 Guns 1629 | 151 498 . 980 . Cannons . | . . . . . Explosions . | . . . . . Melee 463 | . . . . 463 Ramming . | . . . . . Kinetic . | . . . . . Thermal 1629 | 151 498 . 980 . Explosive . | . . . . . Electromagnetic . | . . . . . Impact . | . . . . . Slashing 463 | . . . . 463 Piercing . | . . . . . Highest Corruption . | . . . . . Average Corruption . | . . . . . Corruption Purged . | . . . . . Corruption Blocked . | . . . . . Overload Shots . | . . . . . Overflow Damage 42 | . . . . 42 Projectiles . | . . . . . Explosions . | . . . . . Melee 42 | . . . . 42 Knockbacks . | . . . . . Impact . | . . . . . Kinetic . | . . . . . Secondary . | . . . . . Self-Inflicted Damage . | . . . . . Shots . | . . . . . Rammed . | . . . . . Targets Rammed . | . . . . . Kicked . | . . . . . Crushed . | . . . . . Highest Temperature 346 | 175 346 . 138 . Average Temperature 96 | 77 144 . 47 . Received Heat Transfer 822 | . 90 . 399 333 Effects 1 | . 1 . . . Energy Bleed 1 | . 1 . . . Siege Activations . | . . . . . Robots Corrupted . | . . . . . Combat Hostiles . | . . . . . Parts Fried . | . . . . . Impact Corruptions . | . . . . . Robots Melted . | . . . . . Combat Hostiles . | . . . . . Parts Melted 11 | . 3 . 8 . Heat Transferred 6031 | 592 1702 . 3737 . Parts Sabotaged . | . . . . . Parts Stolen . | . . . . . Parts Stripped . | . . . . . Power Chain Reactions . | . . . . . Alert | -11 -10 -10 -9 -9 ------- Run | Yrd Mat Min Mat Min Peak Influence 257 | 15 204 39 257 50 Initial 39 | . 9 39 14 18 Average 82 | 5 58 39 145 19 Maximum Alert Level 1 | . 1 . 1 . Low Security (%) 88 | 100 99 100 72 100 Level 1 11 | . . . 27 . Level 2 . | . . . . . Level 3 . | . . . . . Level 4 . | . . . . . Level 5 . | . . . . . High Security . | . . . . . Max Security . | . . . . . Squads Dispatched 7 | . 5 . 2 . Investigation 6 | . 4 . 2 . Extermination . | . . . . . Reinforcement 1 | . 1 . . . Assault . | . . . . . Garrison . | . . . . . Intercept . | . . . . . Searches Triggered . | . . . . . Construction Impeded . | . . . . . Haulers Reinforced . | . . . . . Active Scanning Responses . | . . . . . Cargo Convoy Interrupts . | . . . . . Stealth | -11 -10 -10 -9 -9 --------- Run | Yrd Mat Min Mat Min Distress Signals . | . . . . . Communications Jammed . | . . . . . Distress Signals . | . . . . . Times Spotted 41 | . 12 . 21 8 Peak Tracking Total 6 | . 5 . 5 6 Tactical Retreats 5 | . 2 . 1 2 Traps | -11 -10 -10 -9 -9 ------- Run | Yrd Mat Min Mat Min Traps Triggered 1 | . . . 1 . Indirectly . | . . . . . Trap Hack Attempts . | . . . . . Triggered . | . . . . . Disarmed . | . . . . . Reprogrammed . | . . . . . Reused . | . . . . . Traps Extracted . | . . . . . Installed . | . . . . . Triggered . | . . . . . Machines | -11 -10 -10 -9 -9 ---------- Run | Yrd Mat Min Mat Min Machines Disabled . | . . . . . Max in Single Turn . | . . . . . Machines Repaired . | . . . . . Machines Dismantled . | . . . . . Machines Sabotaged . | . . . . . Overloaded Fab Kills . | . . . . . Hacking | -11 -10 -10 -9 -9 --------- Run | Yrd Mat Min Mat Min Machines Accessed 11 | . 6 . 5 . Terminals 9 | . 5 . 4 . Fabricators . | . . . . . Repair Stations 1 | . . . 1 . Recycling Units 1 | . 1 . . . Scanalyzers . | . . . . . Garrison Access . | . . . . . Total Hacks 39 | . 16 . 23 . Successful 17 | . 7 . 10 . Failed 20 | . 8 . 12 . Catastrophic 5 | . 1 . 4 . Database Lockouts 2 | . 1 . 1 . Manual 33 | . 15 . 18 . Terminals 35 | . 15 . 20 . Fabricators . | . . . . . Repair Stations 3 | . . . 3 . Recycling Units 1 | . 1 . . . Scanalyzers . | . . . . . Garrison Access . | . . . . . Terminal Hacks 6 | . 3 . 3 . Robot Schematic 3 | . 1 . 2 . Robot Analysis 1 | . . . 1 . Transport Status 1 | . 1 . . . Hauler Manifests 1 | . 1 . . . Fabricator Hacks . | . . . . . Repair Station Hacks 3 | . . . 3 . Scan Component 1 | . . . 1 . Repair 1 | . . . 1 . Refit 1 | . . . 1 . Recycling Unit Hacks . | . . . . . Scanalyzer . | . . . . . Garrison Access Hacks . | . . . . . Unauthorized Hacks 8 | . 4 . 4 . Terminals 7 | . 3 . 4 . Botnet 7 | . 3 . 4 . Fabricators . | . . . . . Repair Stations . | . . . . . Recycling Units 1 | . 1 . . . Tunnel 1 | . 1 . . . Scanalyzers . | . . . . . Garrison Access . | . . . . . Data Cores Recovered . | . . . . . Used . | . . . . . Hacking Detections 10 | . 5 . 5 . Full Trace Events 9 | . 5 . 4 . Feedback Events . | . . . . . Feedback Blocked . | . . . . . Robot Schematics Acquired 3 | . 1 . 2 . Robots Built . | . . . . . Authchips . | . . . . . Time . | . . . . . Total Robot Build Rating . | . . . . . Part Schematics Acquired . | . . . . . Parts Built . | . . . . . Authchips . | . . . . . Time . | . . . . . Total Part Build Rating . | . . . . . Parts Repaired 1 | . . . 1 . Time 26 | . . . 26 . Parts Recycled . | . . . . . Recycled Matter . | . . . . . Retrieved Matter . | . . . . . Retrieved Components . | . . . . . Parts Scanalyzed . | . . . . . Part Schematics Acquired . | . . . . . Parts Damaged . | . . . . . Bothacking | -11 -10 -10 -9 -9 ------------ Run | Yrd Mat Min Mat Min Used RIF Installer . | . . . . . Robots Hacked . | . . . . . Non-combat . | . . . . . Combat . | . . . . . Robot Hacks Applied . | . . . . . Relay Couplers Released . | . . . . . Fabnet Peak Effective % . | . . . . . Robots Rewired . | . . . . . Allies Hacked . | . . . . . Hacks Repelled . | . . . . . Allies | -11 -10 -10 -9 -9 -------- Run | Yrd Mat Min Mat Min Total Allies 4 | . . 1 . 3 Largest Group 3 | . . 1 1 3 Highest-Rated Group 40 | . . 31 31 40 Highest-Rated Ally 31 | . . 31 31 16 Total Orders . | . . . . . Ally Attacks 33 | . . . 17 16 Total Damage 449 | . . . 250 199 Kills 7 | . . . 6 1 Allies Corrupted . | . . . . . Allies Melted . | . . . . . Intel | -11 -10 -10 -9 -9 ------- Run | Yrd Mat Min Mat Min Robot Analysis Total 1 | . . . 1 . Derelict Logs Recovered 1 | . . . . 1 Drone Launches . | . . . . . Drone Recoveries . | . . . . . Exploration | -11 -10 -10 -9 -9 ------------- Run | Yrd Mat Min Mat Min Turns Passed 2839 | 65 546 112 1222 894 Spaces Moved 1041 | 33 278 69 372 289 Core 14 | 12 . . 2 . Treads 223 | . . . 223 . Legs 315 | . . . 26 289 Wheels 489 | 21 278 69 121 . Hover . | . . . . . Flight . | . . . . . Fastest Speed 50 | 50 100 115 115 260 Average Speed 198 | 81 122 115 232 261 Slowest Speed 750 | 100 130 115 750 330 Overloaded Moves . | . . . . . Propulsion Burnouts . | . . . . . Robots Hopped . | . . . . . Cave-ins Triggered . | . . . . . Exploration Rate (%) 34 | 3 60 16 30 62 Regions Visited 4 Branch Regions 2 Pre-discovered Areas 1 | . 1 . . . Known Exits Taken . | . . . . . Unknown Exits Taken 4 | 1 1 1 1 . Scrap Searched 2 | . . . . 2 Spaces Dug . | . . . . . Terrain Destroyed . | . . . . . Melee . | . . . . . Projectile . | . . . . . AOE . | . . . . . Terrain Rammed . | . . . . . Walls Destroyed . | . . . . . Machines Disabled . | . . . . . Actions | -11 -10 -10 -9 -9 --------- Run | Yrd Mat Min Mat Min Total 1596 | 54 426 101 627 388 Wait 322 | 1 101 32 130 58 Move 1037 | 32 277 68 371 289 Hop . | . . . . . Pick Up 53 | 6 14 1 25 7 Fast Attach 4 | 1 . . 3 . Attach 24 | 6 2 . 12 4 Detach . | . . . . . Swap 6 | . 1 . 1 4 Drop 18 | . 2 . 12 4 Fire 110 | 8 29 . 73 . Melee 22 | . . . . 22 Ram . | . . . . . Kick . | . . . . . Crush . | . . . . . Escape Stasis . | . . . . . Rewire . | . . . . . Trap . | . . . . . Miscellaneous . | . . . . . Route ------- -11/Scrapyard -10/Materials -10/Mines (discovered 2 exits: *Mat x2) -9/Materials -9/Mines (discovered 1 exit: Mat) History --------- Turn | Location | Event 5 | -11/Scrapyard | Discovered new exit (range 15) 66 | -11/Scrapyard | Entered Materials 214 | -10/Materials | Central database locked down 301 | -10/Materials | Build established: Mutant 607 | -10/Materials | Discovered new exit (range 6) 612 | -10/Materials | Entered Mines 670 | -10/Mines | Discovered new exit (range 6) 671 | -10/Mines | Discovered new exit (range 10) 698 | -10/Mines | Received a Mining Laser from a helpful Derelict 724 | -10/Mines | Entered Materials 724 | -9/Materials | Accompanied by 1 ally 724 | -9/Materials | Evolved 2 slots: Utility x2 916 | -9/Materials | Repaired Med. Laser 1392 | -9/Materials | Lost 3 parts (1n1u1w) 1675 | -9/Materials | Central database locked down 1719 | -9/Materials | Discovered new exit (range 16) 1946 | -9/Materials | Entered Mines 1968 | -9/Mines | Core integrity fell below 50% 2008 | -9/Mines | Core integrity fell below 20% 2020 | -9/Mines | Lost 3 parts (1p1n1w) 2234 | -9/Mines | Assisted by bots powering up and referring to "LRC-V3" 2338 | -9/Mines | Build established: Gladiator 2450 | -9/Mines | A weapon hastily lodged in a ceiling crevice suddenly fell to the ground 2469 | -9/Mines | Identified exit to Materials 2564 | -9/Mines | Joined a pair of Derelicts in attacking an 0b10 outpost 2661 | -9/Mines | Received a Rocket Launcher from a helpful Derelict 2702 | -9/Mines | Found a hidden stash of uninstalled traps 2763 | -9/Mines | Assembled infested the area 2768 | -9/Mines | Assisted by a Guerilla fighting off Assembled 2837 | -9/Mines | Lost 4 allies 2840 | -9/Mines | Destroyed by as-48622 with Assembled Rifle Last Messages --------------- 02702_ A stash of uninstalled traps is collected here! 02763_ ALERT: Infestation in the mines, dispatching Demolisher response squad. 02767_ 6U-861(h): "I'll hold them off! Go on ahead or try to find another way!" 02767_ HV Slug penetrates Wall. 02768_ A derelict emerges from the shadows: "You need to get out of here! I've been tracking a group of Assembled to figure out where they're coming from, and they're closing on this area, come on!" 02798_ Trooper 2b destroyed. 02799_ HV Slug penetrates Wall. 02803_ HV Slug penetrates as-90532. 02803_ as-90532 knocked back. 02805_ 6U-861(h) Bore Cannon severed. 02806_ 6U-861(h) destroyed. 02807_ Destroyed Asb. Hover Unit. 02807_ as-90532 destroyed. 02813_ as-71299 destroyed. 02815_ as-38949 destroyed. 02836_ Mining Claw follow-up attack on as-08473. Map ----- +----------------------------------------------------+ | | | | | | | | | ????????????????????????????????????????????? | | ??????????????????????????#######???????????? | | ???????????????????????###########??????????? | | ???????????????????????##### ####?????????? | | ???????????????????????## ####??????### | | ??????????????????####?## ### &###?????#### | | ????????????????######### #### & &##########= | | ????????????????### #### ##### &&#########! | | ????????????????## ### ##### ###!! | | ?????????????????? ### ##?## ####[ | | ?????????????????? ### ##?## ### ##### | | ?????????????????# ### ##?### #### ### | | ????????????????### ## ##?######### ## | | ????????????????### ## ##??######## ## | | ????????????????## ## ##??????### ### | | ?????????????????? ### ##??????## ##### | | ??????????????????# ### ##??????## #### | | ??????????????????## ### ##??????## ### | | ??????????????????## ###%##??????## | | ??????????????????## =###[##??????## ### | | ???????????????##### =###=##??????### #### | | ???????????????#####@%%%=%##??????### ###### | | ????????? a%*!%]###???????## ###### | | ??????? a%!#### ???????## ????## | | ??????? ########;####;### ????????## ????## | | ???????#################???????????## ????## | | ??????????????###??#####???????????## ????## | | ???????????????????????????????????## ????### | | ???????????????????????????????????###????### | | ???????????????????????????????????????????## | | ???????????????????????????????????????????## | | ???????????????????????????????????????????## | | ???????????????????????????????????????????## | | ????????????????????????????????????????????? | | ????????????????????????????????????????????? | | ????????????????????????????????????????????? | | ????????????????????????????????????????????? | | ????????????????????????????????????????????? | | ????????????????????????????????????????????? | | ????????????????????????????????????????????? | | ????????????????????????????????????